bitfinex/quotes_ETHUSD_20260213
["timestamp","ask_amount","ask_price","bid_price","bid_amount"]
[1770989204690,1.26750491,1972.4,1971.3,0.46552512]
[1770989205559,1.36307821,1972.8,1971.3,0.46552512]
[1770989205761,1.73769082,1972.8,1971.5,0.46452512]
[1770989206490,1.73769082,1972.8,1971.6,1.7325308]
[1770989206876,0.47041474,1972.7,1971.6,1.7325308]
[1770989207070,0.47041474,1972.6,1971.4,5.07240365]
[1770989207280,1.55905041,1972.5,1971.4,5.07240365]
[1770989207571,0.47041474,1972.7,1971.5,0.46452512]
[1770989207772,1.26727608,1972.8,1971.5,0.46452512]
[1770989207987,1.08860769,1972.7,1971.5,0.46452512]
[1770989208286,1.26727608,1972.8,1971.5,0.46452512]
[1770989208460,1.08869776,1972.7,1971.5,0.46452512]
[1770989208792,1.26727608,1972.8,1971.7,0.46452512]
[1770989208981,1.08869707,1972.7,1971.7,0.46452512]
[1770989209187,1.26727608,1972.8,1971.7,0.46452512]
[1770989209393,0.47041474,1972.6,1971.6,1.26800568]
[1770989209695,0.47041474,1972.6,1971.5,1.2680189]
[1770989210100,0.47041474,1972.6,1971.5,1.73254402]
[1770989210277,0.47041474,1972.6,1971.6,0.46452512]
[1770989210478,0.47041474,1972.6,1971.5,1.2680189]
[1770989210479,0.00353886,1973.0,1971.8,0.46452512]
[1770989210667,0.00353886,1973.0,1972.0,0.46452512]
[1770989211192,0.002,1972.7,1972.0,0.46452512]
[1770989212896,0.002,1972.7,1972.1,1.26768419]
[1770989214507,0.002,1972.7,1972.1,1.73220931]
[1770989215007,0.002,1972.7,1972.1,1.26768419]
[1770989217979,0.002,1972.7,1972.1,1.73220931]
[1770989218506,0.002,1972.7,1972.2,0.46452512]
[1770989219216,0.002,1972.7,1972.3,1.26755564]
[1770989219911,0.002,1972.7,1972.0,1.26768419]
[1770989220215,0.002,1972.7,1972.0,1.73220931]
[1770989221215,0.002,1972.7,1972.1,0.47907374]
[1770989221927,0.00353886,1973.0,1972.2,0.47907374]
[1770989223428,0.00353886,1973.0,1972.4,0.47907374]
[1770989224217,0.00353886,1973.0,1972.3,1.26755564]
[1770989224390,0.002,1972.9,1972.3,1.26755564]
[1770989225293,0.002,1972.9,1972.2,5.07022258]
[1770989225492,0.002,1972.9,1972.2,5.54929632]
[1770989225690,0.002,1972.9,1972.3,0.47907374]
[1770989227190,1.26681231,1973.5,1972.4,0.47907374]
[1770989227385,2.35686196,1973.4,1972.5,1.74650086]
[1770989227613,1.26687492,1973.4,1972.5,1.74650086]
[1770989227796,1.26683281,1973.5,1972.5,1.74650086]
[1770989227993,1.73552083,1973.6,1972.6,0.47907374]
[1770989228235,0.003,1973.6,1972.6,0.47907374]
[1770989228714,1.26972224,1973.6,1972.6,0.47907374]
[1770989229113,0.003,1973.6,1972.6,0.47907374]
[1770989229507,0.003,1973.6,1972.8,0.47907374]
[1770989230214,0.003,1973.6,1972.7,1.26729862]
[1770989230521,0.003,1973.6,1972.8,0.47907374]
[1770989230924,0.003,1973.6,1972.7,1.26729862]
[1770989231125,0.4687475,1973.6,1972.7,1.26729862]
[1770989231635,1.26678489,1973.5,1972.6,5.0691945]
[1770989231999,1.73253239,1973.5,1972.6,1.26736287]
[1770989232427,0.4657475,1973.4,1972.3,1.74662938]
[1770989232626,0.4657475,1973.3,1972.3,1.26755564]
[1770989233035,1.26972529,1973.6,1972.4,0.47907374]
[1770989233200,1.08975062,1973.5,1972.4,0.47907374]
[1770989233395,1.73547279,1973.6,1972.4,0.47907374]
[1770989233601,1.55548532,1973.5,1972.5,1.26742712]
[1770989233804,1.08980225,1973.4,1972.5,1.26742712]
[1770989234002,0.4657475,1973.3,1972.3,5.07004553]
[1770989234906,0.4657475,1973.3,1972.2,5.07037566]
[1770989235108,0.4657475,1972.8,1972.1,0.001]
[1770989235306,0.4657475,1972.7,1972.1,0.001]
[1770989235635,1.82882571,1973.0,1972.1,0.001]
[1770989235822,1.0911016,1972.9,1972.1,0.001]
[1770989236022,1.0911016,1972.8,1972.1,0.001]
[1770989236206,1.0911016,1972.7,1972.1,0.001]
[1770989236406,1.82882571,1972.9,1972.1,0.001]
[1770989236639,0.4657475,1972.7,1972.1,0.001]
[1770989236837,1.09118243,1972.6,1972.1,0.001]
[1770989237042,0.4657475,1972.5,1971.6,0.001]
[1770989237339,0.4657475,1972.3,1971.6,0.001]
[1770989237501,1.26768419,1972.1,1971.6,0.001]
[1770989237710,1.73343169,1972.1,1971.6,0.001]
[1770989237909,1.09133146,1972.0,1971.6,0.001]
[1770989238110,1.73343169,1972.1,1971.6,0.001]
[1770989238724,1.09081159,1972.0,1971.6,0.001]
[1770989238924,1.73343169,1972.1,1971.6,0.001]
[1770989239234,1.09081173,1972.0,1971.6,0.001]
[1770989239441,1.73343169,1972.1,1971.6,0.001]
[1770989239811,1.5560847,1972.0,1971.6,0.001]
[1770989240009,0.4657475,1972.0,1971.6,0.001]
[1770989240208,1.36307821,1972.2,1971.6,0.001]
[1770989240425,1.26760734,1972.3,1971.6,0.001]
[1770989240653,2.63055544,1972.5,1971.6,0.001]
[1770989240815,1.08979885,1972.4,1971.6,0.48007374]
[1770989241141,1.26747723,1972.5,1971.6,0.48007374]
[1770989241337,1.0896394,1972.4,1971.6,0.001]
[1770989241538,1.26747723,1972.5,1971.6,0.001]
[1770989241738,5.53531936,1972.6,1971.6,0.001]
[1770989241739,1.26755564,1972.3,1971.6,0.001]
[1770989243846,5.0697962,1972.5,1971.6,0.001]
[1770989244010,1.55473397,1972.4,1971.6,0.001]
[1770989244351,0.4657475,1972.2,1971.6,0.001]
[1770989244645,1.36307821,1972.4,1971.6,0.001]
[1770989244851,1.08867413,1972.3,1971.6,0.001]
[1770989245012,1.08867413,1972.2,1971.6,0.001]
[1770989245213,1.36307821,1972.4,1971.6,0.001]
[1770989245522,1.08829371,1972.3,1971.6,0.001]
[1770989245722,1.08829371,1972.2,1971.6,0.001]
[1770989245928,1.26755564,1972.3,1971.6,0.001]
[1770989246133,1.0882841,1972.2,1971.6,0.001]
[1770989246334,1.26755564,1972.3,1971.6,0.001]
[1770989246530,1.08796663,1972.2,1971.6,0.001]
[1770989246734,1.73330314,1972.3,1971.6,0.001]
[1770989247037,1.0879667,1972.2,1971.6,0.001]
[1770989247232,1.73330314,1972.3,1971.6,0.001]
[1770989247545,0.4657475,1972.1,1971.5,0.001]
[1770989247914,1.26774847,1972.0,1971.5,0.001]
[1770989248317,0.4657475,1972.1,1971.5,0.001]
[1770989248513,1.7334377,1972.1,1971.5,0.001]
[1770989250727,0.46843036,1972.0,1971.3,0.001]
[1770989251451,1.2676902,1972.1,1971.3,0.001]
[1770989251648,1.2676902,1972.1,1971.6,0.001]
[1770989251850,5.07073677,1972.2,1971.6,0.001]
[1770989252026,5.53916713,1972.2,1971.3,0.001]
[1770989252355,5.53916713,1972.2,1971.5,0.001]
[1770989253754,0.46843036,1972.1,1971.5,0.001]
[1770989253934,1.26774847,1972.0,1971.5,0.001]
[1770989255553,1.73617883,1972.0,1971.3,0.001]
[1770989256073,0.47786586,1971.9,1971.3,0.001]
[1770989256643,1.74561433,1972.0,1971.0,1.72682806]
[1770989256853,1.08680476,1971.9,1971.0,1.72682806]
[1770989257159,1.74561433,1972.0,1971.0,1.72682806]
[1770989257356,1.56462027,1971.9,1971.0,0.45843672]
[1770989257561,0.47786586,1971.7,1971.0,1.26993039]
[1770989258336,8.01320853,1971.9,1971.0,1.26993039]
[1770989258337,1.26781276,1971.9,1971.0,0.45843672]
[1770989259573,1.08799824,1971.8,1971.0,0.45843672]
[1770989259774,1.26781276,1971.9,1971.0,0.45843672]
[1770989259970,1.08799778,1971.8,1971.0,0.45843672]
[1770989260178,1.26781276,1971.9,1971.0,0.45843672]
[1770989260386,1.26794137,1971.7,1971.0,0.45843672]
[1770989261070,1.26794137,1971.7,1971.0,1.7268273]
[1770989262984,5.07157597,1971.8,1971.0,0.45843672]
[1770989263142,1.56863263,1971.7,1971.0,0.00153886]
[1770989263342,14.44786271,1971.8,1971.0,1.26992145]
[1770989263343,1.09076677,1971.6,1971.0,1.26992145]
[1770989263581,1.09076677,1971.5,1971.0,1.72681931]
[1770989263766,6.43465418,1971.8,1971.0,1.72681931]
[1770989263974,1.09211025,1971.7,1971.0,1.72681931]
[1770989264182,1.09211025,1971.6,1971.1,0.001]
[1770989264389,1.09211025,1971.5,1971.1,0.001]
[1770989264687,1.36307821,1971.7,1971.1,0.001]
[1770989264865,1.26800568,1971.6,1971.1,0.001]
[1770989265070,1.09339991,1971.5,1971.1,0.001]
[1770989265275,1.26800568,1971.6,1971.1,0.001]
[1770989265462,1.09359148,1971.5,1971.1,0.001]
[1770989265762,1.26800568,1971.6,1971.1,0.001]
[1770989265961,1.09359524,1971.5,1971.1,0.001]
[1770989266162,1.26800568,1971.6,1971.1,0.001]
[1770989266363,1.09359571,1971.5,1971.1,0.001]
[1770989266565,1.09359571,1971.4,1971.1,0.001]
[1770989266760,2.63108389,1971.6,1971.1,0.001]
[1770989266761,3.10894975,1971.6,1971.1,0.001]
[1770989266963,1.26813432,1971.4,1971.1,0.001]
[1770989267163,1.26806999,1971.5,1971.1,0.001]
[1770989267377,1.09440758,1971.4,1971.1,0.001]
[1770989267573,1.26806999,1971.5,1971.1,0.001]
[1770989267786,1.09433162,1971.4,1971.1,0.001]
[1770989268094,2.63113227,1971.6,1971.1,0.001]
[1770989268396,1.09431787,1971.5,1971.1,0.001]
[1770989268609,1.09431787,1971.4,1971.1,0.001]
[1770989268761,2.63113227,1971.6,1971.1,0.001]
[1770989269102,1.09425463,1971.5,1971.1,0.001]
[1770989269288,1.09425463,1971.4,1971.1,0.001]
[1770989269469,2.63113227,1971.6,1971.1,0.001]
[1770989269795,1.09420377,1971.5,1971.1,0.001]
[1770989269995,1.09420377,1971.4,1971.1,0.001]
[1770989270184,2.63113227,1971.6,1971.1,0.001]
[1770989270401,1.09415683,1971.5,1971.1,0.001]
[1770989270568,1.09415683,1971.4,1971.1,0.001]
[1770989270770,2.63113227,1971.6,1971.1,0.001]
[1770989270966,1.09415733,1971.5,1971.1,0.001]
[1770989271295,1.09415733,1971.4,1971.1,0.001]
[1770989271497,2.63113227,1971.6,1971.1,0.001]
[1770989271797,1.0944316,1971.5,1971.1,0.001]
[1770989271994,1.0944316,1971.4,1971.1,0.001]
[1770989272298,1.36307821,1971.6,1971.1,0.001]
[1770989272467,1.09463153,1971.5,1971.1,0.45789786]
[1770989272793,2.63102955,1971.7,1971.1,0.45789786]
[1770989272991,1.09460833,1971.6,1971.1,0.45789786]
[1770989273196,1.09460833,1971.5,1971.1,0.45789786]
[1770989273397,1.09460833,1971.4,1971.1,0.45789786]
[1770989273697,2.63114664,1971.6,1971.1,0.001]
[1770989273894,1.09491632,1971.5,1971.1,0.001]
[1770989274094,1.09491632,1971.4,1971.1,1.26932611]
[1770989274397,2.63114664,1971.6,1971.1,0.001]
[1770989274598,1.09505506,1971.5,1971.1,0.001]
[1770989274794,1.09505506,1971.4,1971.1,0.001]
[1770989274979,2.63114664,1971.6,1971.1,0.001]
[1770989275179,1.09505507,1971.5,1971.1,1.26931573]
[1770989275499,1.09505507,1971.4,1971.1,1.26931573]
[1770989275698,1.36307821,1971.6,1971.1,1.26931573]
[1770989275864,2.45828055,1971.6,1971.1,1.26931573]
[1770989276500,2.45828055,1971.6,1971.1,1.72621359]
[1770989277178,3.72628827,1971.6,1971.1,0.45789786]
[1770989277378,1.09520234,1971.5,1971.1,0.45789786]
[1770989277792,1.09520234,1971.5,1971.2,0.001]
[1770989278099,0.002,1971.4,1971.2,0.001]
[1770989279400,1.09581976,1971.3,1971.2,0.001]
[1770989279902,0.002,1971.4,1971.2,0.001]
[1770989280502,1.09591067,1971.3,1971.2,0.001]
[1770989281076,0.002,1971.4,1971.2,0.45552592]
[1770989281401,2.63296146,1971.8,1971.2,0.45552592]
[1770989281699,0.002,1971.8,1971.2,0.45552592]
[1770989281876,0.002,1971.8,1971.3,1.72272457]
[1770989282081,0.002,1971.8,1971.4,0.45452592]
[1770989282302,2.63483025,1972.0,1971.4,0.45452592]
[1770989282604,3.09054355,1972.2,1971.4,0.45452592]
[1770989282605,2.63483025,1972.1,1971.4,0.45452592]
[1770989282807,0.002,1972.3,1971.4,0.45452592]
[1770989283004,0.002,1972.4,1971.8,0.45452592]
[1770989283981,0.002,1972.4,1972.0,0.45452592]
[1770989284305,0.002,1972.4,1971.9,1.26781276]
[1770989284504,0.002,1972.4,1971.8,1.26782867]
[1770989284505,2.63483025,1972.3,1971.8,1.26782867]
[1770989284686,2.63483025,1972.3,1971.6,1.26795742]
[1770989285003,2.63483025,1972.2,1971.6,1.72248334]
[1770989285202,2.63483025,1972.3,1971.7,0.47501035]
[1770989285574,2.63483025,1972.2,1971.7,0.47501035]
[1770989285780,2.63483025,1972.3,1971.6,1.26795742]
[1770989285979,2.63483025,1972.3,1971.6,1.74296777]
[1770989286179,2.63483025,1972.3,1971.6,1.26795742]
[1770989286493,0.002,1972.4,1971.6,1.26795742]
[1770989286694,2.63483025,1972.3,1971.6,1.26795742]
[1770989287309,0.002,1972.4,1971.6,1.26795742]
[1770989288080,0.002,1972.4,1971.4,5.07202272]
[1770989289804,9.28031446,1973.1,1971.4,5.07202272]
[1770989290005,9.28031446,1973.1,1972.0,0.00153886]
[1770989290006,5.06842742,1973.0,1972.0,0.00153886]
[1770989290690,0.002,1972.2,1972.0,0.00153886]
[1770989293595,0.002,1972.2,1971.7,0.001]
[1770989295209,0.002,1972.2,1971.5,0.001]
[1770989295508,1.08869976,1972.1,1971.5,0.001]
[1770989295711,0.002,1972.2,1971.5,0.001]
[1770989301390,9.76755759,1972.1,1971.2,0.001]
[1770989301593,1.08973,1972.0,1971.0,0.00253886]
[1770989301802,0.1024,1971.8,1971.0,0.00253886]
[1770989301995,1.08973,1971.7,1971.0,0.00253886]
[1770989302206,1.08973,1971.7,1970.8,0.001]
[1770989302408,0.1024,1971.6,1970.8,0.001]
[1770989302604,1.08973,1971.5,1970.8,0.001]
[1770989302803,1.08973,1971.5,1970.8,1.2695112]
[1770989303023,0.1024,1971.9,1970.8,0.001]
[1770989303024,6.520772,1971.8,1970.8,0.001]
[1770989303227,1.26800568,1971.6,1970.7,0.001]
[1770989303445,1.08952096,1971.5,1970.7,0.001]
[1770989303595,1.08952096,1971.5,1971.0,0.001]
[1770989304297,1.26797102,1971.7,1971.0,0.001]
[1770989304497,5.0713772,1971.9,1971.0,0.001]
[1770989304731,1.08911051,1971.8,1971.0,0.001]
[1770989304939,0.00153886,1972.0,1971.0,0.001]
[1770989305143,1.26929359,1972.0,1971.0,0.001]
[1770989305334,0.00153886,1972.0,1971.0,0.001]
[1770989306402,1.08928989,1971.9,1971.0,0.001]
[1770989306718,0.00153886,1972.0,1971.0,0.001]
[1770989306919,1.08929758,1971.9,1971.0,0.001]
[1770989307223,0.00153886,1972.0,1971.0,0.001]
[1770989310231,0.00153886,1972.0,1971.1,4.490051]
[1770989310426,0.00153886,1972.0,1971.0,0.001]
[1770989310616,0.00153886,1972.0,1971.1,6.106502]
[1770989311113,0.00153886,1972.0,1971.1,3.781502]
[1770989311320,0.00153886,1972.0,1971.0,0.001]
[1770989315622,0.00153886,1972.0,1971.1,0.001]
[1770989316132,0.002,1971.9,1971.1,0.001]
[1770989319236,0.00063293,1971.9,1971.1,0.001]
[1770989324230,0.00063293,1971.9,1971.2,20.762611]
[1770989324431,0.002,1972.2,1971.2,20.762611]
[1770989324630,0.002,1972.2,1971.2,15.349332]
[1770989325116,0.002,1972.2,1971.3,4.685258]
[1770989325320,0.002,1972.2,1971.2,10.384538]
[1770989326341,0.002,1972.2,1971.4,8.558794]
[1770989328445,0.002,1972.2,1971.5,1.26806999]
[1770989328847,0.002,1971.8,1971.5,1.26806999]
[1770989329026,1.22e-06,1971.8,1971.5,1.26806999]
[1770989329742,0.002,1972.2,1971.5,1.26806999]
[1770989330631,0.002,1972.2,1971.4,5.07227998]
[1770989330949,0.002,1972.8,1971.5,20.762611]
[1770989332251,0.002,1972.8,1971.5,3.423576]
[1770989332626,0.002,1972.8,1971.6,1.26800568]
[1770989333320,1.09135933,1972.7,1971.6,1.26800568]
[1770989333520,0.002,1972.8,1971.6,1.26800568]
[1770989333819,1.09132938,1972.7,1971.6,1.26800568]
[1770989334028,0.002,1972.8,1971.6,1.26800568]
[1770989334218,1.09212842,1972.7,1971.6,1.26800568]
[1770989334413,1.09212842,1972.6,1971.6,1.26800568]
[1770989334641,1.09212842,1972.6,1970.9,5.07461781]
[1770989334642,1.26749138,1972.4,1970.9,5.07461781]
[1770989334836,1.09212842,1972.3,1970.9,5.07461781]
[1770989337058,2.35974833,1972.2,1970.9,5.07461781]
[1770989337226,1.09212842,1972.1,1970.9,5.07461781]
[1770989337737,2.91435948,1972.1,1970.9,5.07461781]
[1770989339123,1.26774847,1972.0,1970.9,5.07461781]
[1770989339343,1.09212842,1971.9,1970.9,1.26945603]
[1770989340167,1.26774847,1972.0,1970.9,1.26945603]
[1770989341980,5.07099391,1972.3,1970.9,0.001]
[1770989342357,5.07099391,1972.3,1971.2,0.001]
[1770989342559,9.76755759,1972.2,1971.2,0.001]
[1770989342996,0.1024,1972.3,1971.2,0.001]
[1770989344282,1.26761991,1972.2,1971.2,0.001]
[1770989349095,1.26736287,1972.6,1971.2,0.04177898]
[1770989349294,1.26736287,1972.6,1971.2,0.001]
[1770989350083,9.18752532,1972.3,1971.2,0.001]
[1770989351989,1.26761991,1972.2,1971.2,0.001]
[1770989352174,1.26761991,1972.2,1971.1,0.001]
[1770989353871,5.07047966,1972.3,1971.1,0.001]
[1770989355505,5.07047966,1972.3,1971.0,0.00253886]
[1770989355506,0.1024,1972.2,1971.0,0.00253886]
[1770989356101,1.26768419,1972.1,1971.0,0.00253886]
[1770989356598,1.26768419,1972.1,1971.2,0.001]
[1770989357305,1.26966441,1972.2,1971.0,0.00253886]
[1770989358202,0.1044,1972.2,1971.0,0.00253886]
[1770989358799,0.002,1972.2,1971.0,0.00253886]
[1770989369004,0.002,1972.2,1971.1,0.001]
[1770989370912,1.26930356,1972.7,1971.2,15.161004]
[1770989371211,1.26930356,1972.7,1971.1,0.39453323]
[1770989371212,0.002,1972.7,1971.7,2.71723]
[1770989371412,1.26931649,1972.7,1971.1,0.001]
[1770989372282,0.002,1972.7,1971.1,0.001]
[1770989374116,0.002,1972.7,1971.1,0.34359736]
[1770989374419,0.002,1972.7,1971.1,0.001]
[1770989374986,0.002,1972.7,1971.1,0.03670781]
[1770989376093,0.002,1972.7,1971.2,19.429525]
[1770989376308,0.002,1972.7,1971.4,1.26813432]
[1770989376509,0.002,1972.7,1971.5,0.03570055]
[1770989377716,0.002,1972.7,1971.6,22.384515]
[1770989377934,0.002,1972.7,1971.7,2.396292]
[1770989378243,0.002,1972.7,1971.5,9.582708]
[1770989378397,0.002,1972.7,1971.7,12.105973]
[1770989378793,0.002,1972.7,1971.8,0.34259736]
[1770989379008,0.002,1972.7,1971.7,5.349]
[1770989379298,0.002,1972.7,1971.8,19.335096]
[1770989379501,0.002,1972.7,1971.8,18.519396]
[1770989379722,0.002,1972.7,1971.8,22.347644]
[1770989379922,0.002,1972.7,1971.8,5.349]
[1770989380130,0.002,1972.7,1971.9,0.03565721]
[1770989380427,0.002,1972.7,1971.9,1.30341643]
[1770989380814,0.002,1972.7,1972.0,0.73613059]
[1770989381018,0.002,1972.7,1972.1,0.03565359]
[1770989381610,0.002,1972.6,1972.1,0.03565359]
[1770989382325,0.002,1972.6,1972.2,0.03565177]
[1770989383100,0.002,1972.6,1971.8,0.03565177]
[1770989384132,0.002,1972.6,1971.9,0.03564995]
[1770989384913,0.002,1972.6,1971.6,0.001]
[1770989394412,0.002,1972.6,1971.7,0.001]
[1770989394616,0.002,1972.5,1971.6,0.001]
[1770989395427,0.00453886,1974.0,1971.6,0.001]
[1770989395641,11.42857574,1975.6,1972.9,20.762611]
[1770989395840,1.26563647,1975.3,1974.7,1.31516585]
[1770989396014,11.255093,1974.9,1974.0,0.26497314]
[1770989396216,3.52758339,1974.8,1972.1,10.018453]
[1770989396445,0.45988935,1974.8,1972.3,10.318284]
[1770989396646,4.5317,1974.6,1973.0,0.00153886]
[1770989396815,0.78456678,1974.5,1973.0,0.00153886]
[1770989397142,0.26791002,1974.5,1973.0,0.00153886]
[1770989397515,0.26791002,1974.5,1973.1,9.839541]
[1770989397737,0.26791002,1974.5,1973.0,0.00153886]
[1770989398054,0.00295139,1974.5,1973.0,0.00153886]
[1770989398251,30.0,1974.3,1972.0,0.00153886]
[1770989398546,0.00153886,1974.0,1972.0,0.00153886]
[1770989398749,4.222399,1973.9,1972.0,0.00153886]
[1770989398933,6.74878,1973.8,1972.0,0.00153886]
[1770989399133,6.74878,1973.8,1971.6,0.001]
[1770989399134,11.106564,1973.7,1971.6,0.001]
[1770989399363,30.0,1973.6,1971.6,0.001]
[1770989399651,7.235649,1972.9,1971.5,0.001]
[1770989400027,0.00295139,1972.8,1971.5,0.001]
[1770989400234,8.074784,1972.7,1971.5,0.001]
[1770989400446,2.68062139,1972.7,1971.5,0.001]
[1770989400749,0.00295139,1972.6,1971.5,0.001]
[1770989400963,0.00295139,1972.9,1971.5,0.001]
[1770989401272,8.745276,1972.8,1971.5,0.001]
[1770989401477,0.00153886,1973.0,1971.5,0.001]
[1770989401478,0.00153886,1976.0,1973.9,1.11754443]
[1770989401760,0.60923571,1977.3,1975.8,0.26651887]
[1770989401923,30.0,1977.2,1975.1,1.32370595]
[1770989402253,30.0,1977.8,1975.6,8.000613]
[1770989402456,30.0,1977.8,1975.1,1.05888086]
[1770989402753,30.0,1977.6,1975.1,1.05888086]
[1770989402960,30.0,1977.4,1975.1,1.05888086]
[1770989403123,0.39616318,1977.3,1975.0,0.00153886]
[1770989403323,30.0,1977.2,1976.0,0.00153886]
[1770989403520,0.39616318,1977.1,1976.0,0.00153886]
[1770989403725,1.26546484,1978.0,1976.0,0.00153886]
[1770989404056,2.809928,1977.7,1976.0,0.00153886]
[1770989404355,6.32995801,1977.9,1976.0,0.00153886]
[1770989404556,0.37856402,1977.9,1976.0,0.00153886]
[1770989404887,0.00153886,1978.0,1976.0,0.00153886]
[1770989405165,0.44802347,1978.5,1976.1,29.507887]
[1770989405369,0.0102283,1979.0,1976.1,29.507887]
[1770989405370,5.04430326,1982.5,1977.0,0.00153886]
[1770989405570,1.26132522,1982.1,1979.1,0.43881372]
[1770989405727,3.864678,1981.8,1978.1,14.297036]
[1770989405921,0.82438109,1982.7,1978.1,14.297036]
[1770989405922,0.37635762,1982.7,1979.0,0.00153886]
[1770989406149,0.37635762,1982.7,1979.1,14.050198]
[1770989406346,1.26115235,1982.4,1980.1,5.726685]
[1770989406549,1.26113635,1982.4,1980.1,2.822]
[1770989406747,1.26100128,1982.6,1980.1,2.822]
[1770989406967,0.09876586,1982.0,1980.0,0.00153886]
[1770989407166,0.09876586,1982.0,1980.1,3.96]
[1770989407345,1.63731771,1982.7,1980.1,3.42]
[1770989407346,3.55806044,1982.6,1980.1,3.42]
[1770989407550,0.37635762,1982.7,1981.0,0.00153886]
[1770989407750,0.37635762,1982.7,1981.1,2.282617]
[1770989407979,1.26097044,1982.6,1981.0,0.00153886]
[1770989408287,3.9411,1982.5,1981.0,0.00153886]
[1770989408453,3.5152,1982.5,1980.0,0.00153886]
[1770989408779,0.00153886,1982.0,1977.4,4.0]
[1770989408981,30.0,1981.7,1977.4,4.0]
[1770989409171,30.0,1981.7,1977.0,0.00153886]
[1770989409172,30.0,1980.9,1977.0,0.00153886]
[1770989409351,0.40005386,1980.8,1977.1,7.489522]
[1770989409550,0.00153886,1980.0,1977.1,2.613412]
[1770989409868,0.00153886,1979.0,1977.1,6.96564627]
[1770989410068,0.00153886,1979.0,1977.1,5.701168]
[1770989410282,3.139185,1978.9,1977.0,0.00153886]
[1770989410481,3.6661,1978.9,1977.0,0.00153886]
[1770989410661,5.046612,1978.9,1977.0,0.00153886]
[1770989410861,2.683795,1978.9,1977.0,0.00153886]
[1770989411061,5.813951,1978.7,1977.0,0.00153886]
[1770989411286,3.170744,1978.7,1977.0,0.00153886]
[1770989411482,4.890444,1978.7,1977.0,0.00153886]
[1770989411654,1.26332811,1978.9,1977.1,3.537802]
[1770989411855,3.74071,1978.8,1977.0,0.00153886]
[1770989412055,2.78455,1978.8,1977.0,0.00153886]
[1770989412279,1.26332811,1978.9,1977.0,0.00153886]
[1770989412858,4.7745,1978.8,1977.0,0.00153886]
[1770989413055,4.7745,1978.8,1976.0,0.00153886]
[1770989413056,10.821162,1978.6,1976.0,0.00153886]
[1770989413586,26.238622,1977.9,1975.0,0.00153886]
[1770989413882,0.00153886,1977.0,1975.2,7.106738]
[1770989414383,0.00153886,1978.0,1975.3,29.507887]
[1770989414688,0.00153886,1978.0,1976.0,0.00153886]
[1770989414982,0.00153886,1979.0,1976.2,1.26505414]
[1770989415154,0.00153886,1979.0,1977.1,29.507887]
[1770989415961,1.26237123,1980.4,1977.3,29.507887]
[1770989416162,1.26237123,1980.4,1978.0,0.00153886]
[1770989416402,1.26230761,1980.5,1978.1,7.02638]
[1770989416597,1.26230761,1980.5,1978.1,4.961324]
[1770989416756,1.26237123,1980.4,1978.1,4.961324]
[1770989416956,2.801212,1979.9,1978.0,0.00153886]
[1770989417280,5.05003968,1980.3,1978.0,0.00153886]
[1770989417483,2.560212,1979.8,1978.0,0.00153886]
[1770989418155,0.00153886,1980.0,1978.1,9.757783]
[1770989418358,1.26269003,1979.9,1978.0,0.00153886]
[1770989418685,0.00153886,1980.0,1978.1,7.036227]
[1770989418988,0.00153886,1981.0,1978.1,7.036227]
[1770989419190,0.00153886,1981.0,1978.3,29.507887]
[1770989419399,0.00153886,1981.0,1979.1,29.507887]
[1770989419598,0.003,1982.1,1979.1,29.507887]
[1770989419961,0.003,1982.1,1980.1,19.909941]
[1770989420284,0.003,1982.1,1980.0,0.00153886]
[1770989420285,3.787889,1981.9,1980.0,0.00153886]
[1770989420471,6.193485,1981.8,1980.0,0.00153886]
[1770989420671,6.193485,1981.8,1979.0,0.00153886]
[1770989420861,0.00153886,1981.0,1979.0,0.00153886]
[1770989421060,5.549926,1980.7,1979.0,0.00153886]
[1770989421668,5.549926,1980.7,1978.1,0.001]
[1770989421991,0.00153886,1980.0,1978.1,0.001]
[1770989422294,1.2620526,1980.9,1980.0,0.04846114]
[1770989422593,1.2620526,1980.9,1978.1,1.26483903]
[1770989422594,0.00153886,1981.0,1980.5,0.03669398]
[1770989422776,0.00153886,1981.0,1979.0,0.00153886]
[1770989422777,0.00153886,1981.0,1979.2,2.027708]
[1770989422966,1.26352959,1981.0,1979.1,6.267154]
[1770989423170,0.00153886,1981.0,1979.3,8.171446]
[1770989423392,0.00153886,1981.0,1979.1,2.492]
[1770989423569,0.00153886,1981.0,1979.0,0.00153886]
[1770989423770,0.00153886,1981.0,1979.1,9.579454]
[1770989423990,0.00153886,1981.0,1979.1,7.968636]
[1770989424776,0.00153886,1981.0,1979.2,7.164903]
[1770989424980,0.00153886,1981.0,1979.2,5.656569]
[1770989425180,0.00153886,1981.0,1979.2,2.14064]
[1770989425379,0.00153886,1981.0,1979.1,7.23058844]
[1770989425662,0.911,1981.7,1979.2,23.29802]
[1770989425864,0.003,1982.1,1979.3,34.906887]
[1770989426088,0.003,1982.1,1980.1,29.557887]
[1770989426593,0.37635762,1982.7,1980.1,14.09798]
[1770989426780,0.37635762,1982.7,1981.0,0.00153886]
[1770989426967,1.26097044,1982.6,1981.0,0.00153886]
[1770989427169,0.37635762,1982.7,1981.0,0.00153886]
[1770989427365,0.37635762,1982.7,1980.0,0.00153886]
[1770989427366,5.75686044,1982.6,1980.1,2.491096]
[1770989427695,0.00153886,1982.0,1980.0,0.00153886]
[1770989427862,0.911,1981.9,1980.1,7.1017]
[1770989428068,0.911,1981.9,1980.0,0.00153886]
[1770989428267,0.911,1981.9,1980.1,4.50236]
[1770989428484,0.911,1981.9,1980.0,0.00153886]
[1770989428685,9.11017476,1981.0,1980.0,0.00153886]
[1770989428892,9.11017476,1981.6,1980.0,0.00153886]
[1770989429288,0.00153886,1982.0,1980.1,3.23771325]
[1770989429564,0.00153886,1982.0,1980.1,29.139166]
[1770989429764,0.37635762,1982.7,1980.4,9.11017476]
[1770989429998,0.37635762,1982.7,1980.1,26.78889]
[1770989429999,0.37635762,1982.7,1980.1,29.557887]
[1770989430198,0.37635762,1982.7,1981.1,23.241814]